fUSD/lending_fUSD_20240515
["ID","MTS","AMOUNT","RATE_DAILY","PERIOD"]
[327102478,1715812256372,-500.0,0.00012996,2]
[327102479,1715812256381,-500.0,0.00012996,2]
[327102480,1715812256391,-500.0,0.00012996,2]
[327102481,1715812256401,-500.0,0.00012996,2]
[327102482,1715812256412,-500.0,0.00012996,2]
[327102483,1715812256422,-500.0,0.00012996,2]
[327102484,1715812256432,-500.0,0.00012996,2]
[327102485,1715812256442,-500.0,0.00012996,2]
[327102486,1715812256453,-500.0,0.00012996,2]
[327102487,1715812256464,-500.0,0.00012996,2]
[327102488,1715812256474,-500.0,0.00012996,2]
[327102489,1715812256484,-500.0,0.00012996,2]
[327102490,1715812256494,-500.0,0.00012996,2]
[327102491,1715812256503,-500.0,0.00012996,2]
[327102492,1715812256513,-411.98,0.00012996,2]
[327102493,1715812256524,-500.0,0.00012996,2]
[327102494,1715812256533,-500.0,0.00012996,2]
[327102495,1715812256543,-500.0,0.00012996,2]
[327102496,1715812256554,-500.0,0.00012996,2]
[327102497,1715812256564,-500.0,0.00012996,2]
[327102498,1715812256575,-500.0,0.00012996,2]
[327102499,1715812256585,-500.0,0.00012996,2]
[327102500,1715812256595,-500.0,0.00012996,2]
[327102501,1715812256604,-500.0,0.00012996,2]
[327102502,1715812256614,-500.0,0.00012996,2]
[327102503,1715812256624,-500.0,0.00012996,2]
[327102504,1715812256634,-500.0,0.00012996,2]
[327102505,1715812256644,-500.0,0.00012996,2]
[327102506,1715812256654,-500.0,0.00012996,2]
[327102507,1715812256834,-500.0,0.00012996,2]
[327102508,1715812256844,-500.0,0.00012996,2]
[327102509,1715812256853,-500.0,0.00012996,2]
[327102510,1715812256865,-500.0,0.00012996,2]
[327102511,1715812256876,-159.41144244,0.00012996,2]
[327102512,1715812257228,-96.74319619,0.00012996,2]
[327102513,1715812257240,-540.71804347,0.00012996,2]
[327102514,1715812257250,-500.0,0.00012996,2]
[327102515,1715812257260,-500.0,0.00012996,2]
[327102516,1715812257271,-500.0,0.00012996,2]
[327102517,1715812257280,-500.0,0.00012996,2]
[327102518,1715812257289,-500.0,0.00012996,2]
[327102519,1715812257299,-500.0,0.00012996,2]
[327102520,1715812257308,-573.04,0.00012996,2]
[327102521,1715812257318,-500.0,0.00012996,2]
[327102522,1715812257327,-500.0,0.00012996,2]
[327102523,1715812257337,-500.0,0.00012996,2]
[327102524,1715812257347,-500.0,0.00012996,2]
[327102525,1715812257356,-500.0,0.00012996,2]
[327102526,1715812257366,-524.64436922,0.00012996,2]
[327102527,1715812257376,-500.0,0.00012996,2]
[327102528,1715812257385,-500.0,0.00012996,2]
[327102529,1715812257396,-295.17594876,0.00012996,2]
[327102530,1715812257405,-500.0,0.00012996,2]
[327102531,1715812257414,-405.59,0.00012996,2]
[327102532,1715812257424,-500.0,0.00012996,2]
[327102533,1715812257433,-500.0,0.00012996,2]
[327102534,1715812257442,-500.0,0.00012996,2]
[327102535,1715812257452,-500.0,0.00012996,2]
[327102536,1715812257462,-500.0,0.00012996,2]
[327102537,1715812257471,-500.0,0.00012996,2]
[327102538,1715812257480,-500.0,0.00012996,2]
[327102539,1715812257490,-500.0,0.00012996,2]
[327102540,1715812257499,-500.0,0.00012996,2]
[327102541,1715812257508,-500.0,0.00012996,2]
[327102542,1715812257518,-500.0,0.00012996,2]
[327102543,1715812257528,-500.0,0.00012996,2]
[327102544,1715812257538,-220.74875907,0.00012996,2]
[327102545,1715812257547,-500.0,0.00012996,2]
[327102546,1715812257556,-500.0,0.00012996,2]
[327102547,1715812257567,-500.0,0.00012996,2]
[327102548,1715812257576,-500.0,0.00012996,2]
[327102549,1715812257586,-508.93,0.00012996,2]
[327102550,1715812257595,-508.93,0.00012996,2]
[327102551,1715812257604,-500.0,0.00012996,2]
[327102552,1715812257614,-156.17,0.00012996,2]
[327102553,1715812257623,-500.0,0.00012996,2]
[327102554,1715812257633,-1826.14,0.00012996,2]
[327102555,1715812257642,-500.0,0.00012996,2]
[327102556,1715812257651,-1826.14,0.00012996,2]
[327102557,1715812257661,-500.0,0.00012996,2]
[327102558,1715812257670,-500.0,0.00012996,2]
[327102559,1715812257680,-620.02090251,0.00012996,2]
[327102560,1715812257689,-353.98514643,0.00012996,2]
[327102561,1715812257698,-500.0,0.00012996,2]
[327102562,1715812257707,-500.0,0.00012996,2]
[327102563,1715812257717,-500.0,0.00012996,2]
[327102564,1715812257726,-500.0,0.00012996,2]
[327102565,1715812257736,-354.40428455,0.00012996,2]
[327102566,1715812257748,-145.59571545,0.00012996,2]
[327102567,1715812257757,-500.0,0.00012996,2]
[327102568,1715812257768,-901.19,0.00012996,2]
[327102569,1715812257777,-901.19,0.00012996,2]
[327102570,1715812257787,-500.0,0.00012996,2]
[327102571,1715812257796,-500.0,0.00012996,2]
[327102572,1715812257806,-500.0,0.00012996,2]
[327102573,1715812257815,-500.0,0.00012996,2]
[327102574,1715812257826,-500.0,0.00012996,2]
[327102575,1715812257835,-778.65,0.00012996,2]
[327102576,1715812257844,-169.41400057,0.00012996,2]
[327102577,1715812257853,-778.65,0.00012996,2]
[327102578,1715812257868,-500.0,0.00012996,2]
[327102579,1715812257878,-193.91248997,0.00012996,2]
[327102580,1715812257887,-127.9503646,0.00012996,2]
[327102581,1715812257899,-372.0496354,0.00012996,2]
[327102582,1715812257910,-500.0,0.00012996,2]
[327102583,1715812257919,-500.0,0.00012996,2]
[327102584,1715812257928,-500.0,0.00012996,2]
[327102585,1715812257937,-418.01999258,0.00012996,2]
[327102586,1715812257948,-500.0,0.00012996,2]
[327102587,1715812257958,-500.0,0.00012996,2]
[327102588,1715812257967,-500.0,0.00012996,2]
[327102589,1715812257976,-500.0,0.00012996,2]
[327102590,1715812257989,-500.0,0.00012996,2]
[327102591,1715812257999,-500.0,0.00012996,2]
[327102592,1715812258008,-422.72,0.00012996,2]
[327102593,1715812258018,-500.0,0.00012996,2]
[327102594,1715812258028,-500.0,0.00012996,2]
[327102595,1715812258037,-500.0,0.00012996,2]
[327102596,1715812258046,-399.6001357,0.00012996,2]
[327102597,1715812258055,-500.0,0.00012996,2]
[327102598,1715812258064,-500.0,0.00012996,2]
[327102599,1715812258074,-511.55699593,0.00012996,2]
[327102600,1715812258083,-500.0,0.00012996,2]
[327102601,1715812258094,-250.72613901,0.00012996,2]
[327102602,1715812258103,-500.0,0.00012996,2]
[327102603,1715812258112,-500.0,0.00012996,2]
[327102604,1715812258121,-500.0,0.00012996,2]
[327102605,1715812258131,-500.0,0.00012996,2]
[327102606,1715812258140,-500.0,0.00012996,2]
[327102607,1715812258150,-500.0,0.00012996,2]
[327102608,1715812258160,-500.0,0.00012996,2]
[327102609,1715812258170,-344.49243996,0.00012996,2]
[327102610,1715812258179,-500.0,0.00012996,2]
[327102611,1715812258188,-500.0,0.00012996,2]
[327102612,1715812258198,-572.4,0.00012996,2]
[327102613,1715812258207,-500.0,0.00012996,2]
[327102614,1715812258217,-500.0,0.00012996,2]
[327102615,1715812258226,-500.0,0.00012996,2]
[327102616,1715812258235,-78.17400794,0.00012996,2]
[327102617,1715812258247,-421.82599206,0.00012996,2]
[327102618,1715812258257,-314.051606,0.00012997,2]
[327102619,1715812258266,-314.051606,0.00012997,2]
[327102620,1715812258275,-314.051606,0.00012997,2]
[327102621,1715812258284,-314.051606,0.00012997,2]
[327102622,1715812258294,-314.051606,0.00012997,2]
[327102623,1715812258303,-314.051606,0.00012997,2]
[327102624,1715812258313,-314.051606,0.00012997,2]
[327102625,1715812258323,-314.051606,0.00012997,2]
[327102626,1715812258333,-2878.66115994,0.00012997,2]
[327102627,1715812258345,-147.57955629,0.00012997,2]
[327102628,1715812258354,-155.0,0.00012997,2]
[327102629,1715812258363,-367.31717071,0.00012997,2]
[327102630,1715812258385,-12649.23290629,0.00012875,2]
[327102631,1715812258394,-1990.54330938,0.00012997,2]
[327102632,1715812258404,-891.59702285,0.00012997,2]
[327102633,1715812258414,-243.18749239,0.00012997,2]
[327102634,1715812258424,-44225.24257912,0.00012997,2]
[327102635,1715812258436,-2008.00587715,0.00012997,2]
[327102636,1715812258447,-3555.70374447,0.00012997,2]
[327102637,1715812258459,-872.42505771,0.00012997,2]
[327102638,1715812258471,-1898.99689921,0.00012997,2]
[327102639,1715812269306,300.0,0.00024,120]
[327102640,1715812408533,2725.60376701,0.00012,12]
[327102664,1715813432176,-160.45,9.159e-05,2]
[327102666,1715813432187,-446.45853724,0.0001,3]
[327102667,1715813432201,-264.25996,0.0001,3]
[327102669,1715813432212,-93.63607934,0.0001,3]
[327102670,1715813432221,-346.22786443,0.0001016,2]
[327102671,1715813432232,-139.19413557,0.0001016,2]
[327102672,1715813432245,-696.32986443,0.0001026,2]
[327102673,1715813432497,-1003.67013557,0.0001026,2]
[327102675,1715813432506,-217.93763421,0.0001026,2]
[327102677,1715813432517,-282.06236579,0.0001026,2]
[327102679,1715813432526,-600.0,0.0001026,2]
[327102681,1715813432535,-2200.0,0.0001026,2]
[327102683,1715813432544,-500.0,0.0001026,2]
[327102685,1715813432553,-158.11,0.00010411,2]
[327102687,1715813432562,-561.6,0.00010631,2]
[327102689,1715813432571,-3779.57,0.00010678,2]
[327102691,1715813432580,-250.0,0.00010693,2]
[327102693,1715813432589,-803.3483767,0.00011,2]
[327102695,1715813432599,-3140.0,0.00011079,2]
[327102697,1715813432608,-1700.0,0.00011082,2]
[327102699,1715813432617,-600.0,0.00011082,2]
[327102701,1715813432627,-2200.0,0.00011082,2]
[327102703,1715813432636,-500.0,0.00011082,2]
[327102705,1715813432645,-499.99,0.00011082,2]
[327102707,1715813432654,-176.89,0.00011086,2]
[327102709,1715813432663,-438.4,0.00011115,2]
[327102711,1715813432673,-165.54,0.0001114,2]
[327102713,1715813432682,-644.92,0.0001115,2]
[327102715,1715813432691,-644.92,0.00011181,2]
[327102717,1715813432700,-644.92,0.00011211,2]
[327102719,1715813432710,-644.92,0.00011242,2]
[327102721,1715813432719,-644.92,0.00011272,2]
[327102723,1715813432728,-644.92,0.00011303,2]
[327102725,1715813432737,-644.92,0.00011334,2]
[327102727,1715813432746,-644.92,0.00011364,2]
[327102729,1715813432757,-1139.422013,0.00011379,2]
[327102731,1715813432766,-9547.73835177,0.00011379,2]
[327102733,1715813432775,-28305.39413971,0.0001138,2]
[327102735,1715813432786,-644.92,0.00011395,2]
[327102736,1715813432796,-644.92,0.00011425,2]
[327102737,1715813432805,-644.92,0.00011456,2]
[327102738,1715813432814,-644.92,0.00011487,2]
[327102739,1715813432823,-644.92,0.00011517,2]
[327102740,1715813432833,-644.92,0.00011548,2]
[327102741,1715813432842,-644.92,0.00011578,2]
[327102742,1715813432851,-644.92,0.00011609,2]
[327102743,1715813432860,-644.92,0.00011639,2]
[327102744,1715813432870,-644.92,0.0001167,2]
[327102745,1715813432879,-644.92,0.00011701,2]
[327102746,1715813432888,-644.92,0.00011731,2]
[327102747,1715813432897,-256.756,0.00011797,2]
[327102748,1715813432906,-25824.8015817,0.00011897,2]
[327102749,1715813432916,-1700.0,0.00011904,2]
[327102750,1715813432925,-500.0,0.00011904,2]
[327102751,1715813432934,-600.0,0.00011904,2]
[327102752,1715813432943,-2200.0,0.00011904,2]
[327102753,1715813432953,-561.6,0.0001196,2]
[327102754,1715813432962,-2321.24,0.0001199,2]
[327102755,1715813432972,-180.10595824,0.00012,2]
[327102756,1715813432981,-190.12215852,0.00012,2]
[327102757,1715813432990,-163.21884329,0.00012,2]
[327102758,1715813432999,-525.25362599,0.00012,2]
[327102759,1715813433008,-7510.54701635,0.00012,2]
[327102760,1715813433017,-410.03425881,0.00012032,2]
[327102761,1715813433035,-170.32,0.00012033,2]
[327102762,1715813433047,-2499.99,0.00012121,2]
[327102763,1715813433057,-180.0,0.00012175,2]
[327102764,1715813433068,-1000.0,0.00012187,2]
[327102765,1715813433079,-780.3462,0.0001239,2]
[327102766,1715813433088,-6295.5261,0.0001239,2]
[327102767,1715813433097,-2500.0,0.0001239,2]
[327102768,1715813433107,-961.24056282,0.000124,2]
[327102769,1715813433118,-961.24056282,0.00012456,2]
[327102770,1715813433128,-3578.90368179,0.00012477,2]
[327102771,1715813433138,-7304.66066407,0.00012489,2]
[327102772,1715813433148,-222374.63141033,0.0001249,6]
[327102773,1715813433158,-155.0,0.000125,2]
[327102774,1715813433167,-438.4,0.00012505,2]
[327102775,1715813433176,-961.24056282,0.00012511,2]
[327102776,1715813433186,-494.0898,0.00012526,2]
[327102777,1715813433196,-961.24056282,0.00012567,2]
[327102778,1715813433206,-961.24056282,0.00012622,2]
[327102779,1715813433215,-10349.8897,0.00012626,2]
[327102780,1715813433225,-150.0,0.00012629,2]
[327102781,1715813433240,-961.24056282,0.00012678,2]
[327102782,1715813433250,-1700.0,0.00012726,2]
[327102783,1715813433260,-600.0,0.00012726,2]
[327102784,1715813433270,-2200.0,0.00012726,2]
[327102785,1715813433282,-500.0,0.00012726,2]
[327102786,1715813433292,-961.24056282,0.00012733,2]
[327102787,1715813433301,-1078.96273136,0.00012737,2]
[327102788,1715813433312,-12649.23290629,0.0001275,2]
[327102789,1715813433323,-686.43641079,0.00012774,2]
[327102790,1715813433332,-429.78738965,0.00012776,2]
[327102791,1715813433341,-961.24056282,0.00012789,2]
[327102792,1715813433351,-5000.0,0.000128,2]
[327102793,1715813433360,-223.03112784,0.000128,2]
[327102794,1715813433371,-429.78738965,0.00012807,2]
[327102795,1715813433380,-150.0,0.0001282,2]
[327102796,1715813433390,-429.78738965,0.00012838,2]
[327102797,1715813433399,-961.24056282,0.00012844,2]
[327102798,1715813433409,-252.02181648,0.00012864,2]
[327102799,1715813433421,-185.76539648,0.00012866,2]
[327102800,1715813433430,-305.17750257,0.00012867,2]
[327102801,1715813433440,-429.78738965,0.00012868,2]
[327102802,1715813433450,-4111.52016321,0.00012874,2]
[327102803,1715813433459,-248.20231284,0.00012874,2]
[327102804,1715813433468,-12780.79775565,0.00012874,2]
[327102805,1715813433478,-2220.75893654,0.00012874,2]
[327102806,1715813433487,-5293.45039676,0.00012874,2]
[327102807,1715813433497,-524.65969467,0.00012876,2]
[327102808,1715813433507,-389.19555903,0.00012876,2]
[327102809,1715813433516,-505.37744134,0.00012876,2]
[327102810,1715813433526,-503.05783154,0.00012876,2]
[327102811,1715813433535,-504.99805253,0.00012876,2]
[327102812,1715813433545,-502.82191473,0.00012876,2]
[327102813,1715813433554,-374.46137945,0.00012876,2]
[327102814,1715813433563,-497.39874817,0.00012876,2]
[327102815,1715813433572,-502.61253875,0.00012876,2]
[327102816,1715813433582,-466.3,0.00012876,2]
[327102817,1715813433591,-500.0,0.00012876,2]
[327102818,1715813433601,-259.33,0.00012876,2]
[327102819,1715813433611,-619.14,0.00012876,2]
[327102820,1715813433620,-500.0,0.00012876,2]
[327102821,1715813433629,-530.87,0.00012876,2]
[327102822,1715813433639,-304.92435929,0.00012876,2]
[327102823,1715813433648,-500.0,0.00012876,2]
[327102824,1715813433658,-360.03,0.00012876,2]
[327102825,1715813433668,-500.0,0.00012876,2]
[327102826,1715813433677,-161.5,0.00012876,2]
[327102827,1715813433687,-500.0,0.00012876,2]
[327102828,1715813433696,-500.0,0.00012876,2]
[327102829,1715813433705,-500.0,0.00012876,2]
[327102830,1715813433716,-500.0,0.00012876,2]
[327102831,1715813433725,-500.0,0.00012876,2]
[327102832,1715813433735,-500.0,0.00012876,2]
[327102833,1715813433745,-500.0,0.00012876,2]
[327102834,1715813433755,-500.0,0.00012876,2]
[327102835,1715813433764,-500.0,0.00012876,2]
[327102836,1715813433775,-500.0,0.00012876,2]
[327102837,1715813433785,-500.0,0.00012876,2]
[327102838,1715813433794,-500.0,0.00012876,2]
[327102839,1715813433804,-504.45347341,0.00012876,2]
[327102840,1715813433813,-500.0,0.00012876,2]
[327102841,1715813433823,-500.0,0.00012876,2]
[327102842,1715813433833,-500.0,0.00012876,2]
[327102843,1715813433843,-500.0,0.00012876,2]
[327102844,1715813433853,-500.0,0.00012876,2]
[327102845,1715813433863,-500.0,0.00012876,2]
[327102846,1715813433872,-500.0,0.00012876,2]
[327102847,1715813433881,-547.54,0.00012876,2]
[327102848,1715813433891,-500.0,0.00012876,2]
[327102849,1715813433900,-500.0,0.00012876,2]
[327102850,1715813433909,-500.0,0.00012876,2]
[327102851,1715813433919,-500.0,0.00012876,2]
[327102852,1715813433928,-500.0,0.00012876,2]
[327102853,1715813433938,-500.0,0.00012876,2]
[327102854,1715813433947,-538.49224741,0.00012876,2]
[327102855,1715813433957,-500.0,0.00012876,2]
[327102856,1715813433967,-500.0,0.00012876,2]
[327102857,1715813433977,-500.0,0.00012876,2]
[327102858,1715813433987,-500.0,0.00012876,2]
[327102859,1715813433996,-500.0,0.00012876,2]
[327102860,1715813434005,-500.0,0.00012876,2]
[327102861,1715813434016,-503.48,0.00012876,2]
[327102862,1715813434030,-207.44,0.00012876,2]
[327102863,1715813434039,-500.0,0.00012876,2]
[327102864,1715813434048,-500.0,0.00012876,2]
[327102865,1715813434058,-500.0,0.00012876,2]
[327102866,1715813434067,-500.0,0.00012876,2]
[327102867,1715813434076,-500.0,0.00012876,2]
[327102868,1715813434086,-500.0,0.00012876,2]
[327102869,1715813434095,-500.0,0.00012876,2]
[327102870,1715813434104,-500.0,0.00012876,2]
[327102871,1715813434117,-500.0,0.00012876,2]
[327102872,1715813434127,-500.0,0.00012876,2]
[327102873,1715813434137,-500.0,0.00012876,2]
[327102874,1715813434147,-500.0,0.00012876,2]
[327102875,1715813434156,-415.17,0.00012876,2]
[327102876,1715813434166,-500.0,0.00012876,2]
[327102877,1715813434176,-500.0,0.00012876,2]
[327102878,1715813434186,-588.31,0.00012876,2]
[327102879,1715813434195,-500.0,0.00012876,2]
[327102880,1715813434205,-477.90263636,0.00012876,2]
[327102881,1715813434215,-495.61202471,0.00012876,2]
[327102882,1715813434224,-500.0,0.00012876,2]
[327102883,1715813434234,-500.0,0.00012876,2]
[327102884,1715813434248,-500.0,0.00012876,2]
[327102885,1715813434258,-534.26017094,0.00012876,2]
[327102886,1715813434270,-500.0,0.00012876,2]
[327102887,1715813434280,-303.35443656,0.00012876,2]
[327102888,1715813434290,-500.0,0.00012876,2]
[327102889,1715813434299,-500.0,0.00012876,2]
[327102890,1715813434309,-156.2781851,0.00012876,2]
[327102891,1715813434322,-500.0,0.00012876,2]
[327102892,1715813434332,-500.0,0.00012876,2]
[327102893,1715813434342,-500.0,0.00012876,2]
[327102894,1715813434352,-500.0,0.00012876,2]
[327102895,1715813434361,-500.0,0.00012876,2]
[327102896,1715813434371,-500.0,0.00012876,2]
[327102897,1715813434380,-500.0,0.00012876,2]
[327102898,1715813434390,-500.0,0.00012876,2]
[327102899,1715813434400,-733.4,0.00012876,2]
[327102900,1715813434410,-733.4,0.00012876,2]
[327102901,1715813434420,-493.72,0.00012876,2]
[327102902,1715813434430,-500.0,0.00012876,2]
[327102903,1715813434439,-500.0,0.00012876,2]
[327102904,1715813434450,-500.0,0.00012876,2]
[327102905,1715813434460,-500.0,0.00012876,2]
[327102906,1715813434471,-500.0,0.00012876,2]
[327102907,1715813434481,-500.0,0.00012876,2]
[327102908,1715813434490,-500.0,0.00012876,2]
[327102909,1715813434500,-500.0,0.00012876,2]
[327102910,1715813434764,-500.0,0.00012876,2]
[327102911,1715813434775,-500.0,0.00012876,2]
[327102912,1715813434785,-500.0,0.00012876,2]
[327102913,1715813434794,-500.0,0.00012876,2]
[327102914,1715813434803,-500.0,0.00012876,2]
[327102915,1715813434813,-500.0,0.00012876,2]
[327102916,1715813434822,-500.0,0.00012876,2]
[327102917,1715813434831,-500.0,0.00012876,2]
[327102918,1715813434840,-500.0,0.00012876,2]
[327102919,1715813434850,-500.0,0.00012876,2]
[327102920,1715813434859,-517.5488638,0.00012876,2]
[327102921,1715813434868,-500.0,0.00012876,2]
[327102922,1715813434877,-500.0,0.00012876,2]
[327102923,1715813434887,-500.0,0.00012876,2]
[327102924,1715813434896,-541.45,0.00012876,2]
[327102925,1715813434905,-278.19,0.00012876,2]
[327102926,1715813434914,-500.0,0.00012876,2]
[327102927,1715813434924,-644.64,0.00012876,2]
[327102928,1715813434933,-500.0,0.00012876,2]
[327102929,1715813434943,-500.0,0.00012876,2]
[327102930,1715813434953,-500.0,0.00012876,2]
[327102931,1715813434962,-500.0,0.00012876,2]
[327102932,1715813434971,-500.0,0.00012876,2]
[327102933,1715813434980,-516.14000203,0.00012876,2]
[327102934,1715813434989,-277.9,0.00012876,2]
[327102935,1715813434999,-500.0,0.00012876,2]
[327102936,1715813435008,-440.11,0.00012876,2]
[327102937,1715813435018,-500.0,0.00012876,2]
[327102938,1715813435028,-500.0,0.00012876,2]
[327102939,1715813435037,-500.0,0.00012876,2]
[327102940,1715813435046,-155.0,0.00012876,2]
[327102941,1715813435055,-517.18966297,0.00012876,2]
[327102942,1715813435065,-500.0,0.00012876,2]
[327102943,1715813435074,-500.0,0.00012876,2]
[327102944,1715813435083,-500.0,0.00012876,2]
[327102945,1715813435092,-500.0,0.00012876,2]
[327102946,1715813435102,-500.0,0.00012876,2]
[327102947,1715813435111,-500.0,0.00012876,2]
[327102948,1715813435120,-500.0,0.00012876,2]
[327102949,1715813435129,-500.0,0.00012876,2]
[327102950,1715813435138,-500.0,0.00012876,2]
[327102951,1715813435147,-500.0,0.00012876,2]
[327102952,1715813435156,-167.02939515,0.00012876,2]
[327102953,1715813435165,-500.0,0.00012876,2]
[327102954,1715813435175,-456.58,0.00012876,2]
[327102955,1715813435185,-500.0,0.00012876,2]
[327102956,1715813435194,-500.0,0.00012876,2]
[327102957,1715813435203,-474.45,0.00012876,2]
[327102958,1715813435213,-464.41,0.00012876,2]
[327102959,1715813435221,-500.0,0.00012876,2]
[327102960,1715813435231,-500.0,0.00012876,2]
[327102961,1715813435244,-500.0,0.00012876,2]
[327102962,1715813435253,-306.99,0.00012876,2]
[327102963,1715813435263,-535.50817826,0.00012876,2]
[327102964,1715813435275,-500.0,0.00012876,2]
[327102965,1715813435284,-500.0,0.00012876,2]
[327102966,1715813435293,-500.0,0.00012876,2]
[327102967,1715813435302,-500.0,0.00012876,2]
[327102968,1715813435312,-500.0,0.00012876,2]
[327102969,1715813435330,-500.0,0.00012876,2]
[327102970,1715813435341,-500.0,0.00012876,2]
[327102971,1715813435350,-256.06,0.00012876,2]
[327102972,1715813435360,-500.0,0.00012876,2]
[327102973,1715813435369,-500.0,0.00012876,2]
[327102974,1715813435379,-587.97,0.00012876,2]
[327102975,1715813435388,-587.97,0.00012876,2]
[327102976,1715813435398,-500.0,0.00012876,2]
[327102977,1715813435407,-500.0,0.00012876,2]
[327102978,1715813435417,-500.0,0.00012876,2]
[327102979,1715813435426,-500.0,0.00012876,2]
[327102980,1715813435435,-500.0,0.00012876,2]
[327102981,1715813435445,-500.0,0.00012876,2]
[327102982,1715813435454,-500.0,0.00012876,2]
[327102983,1715813435463,-500.0,0.00012876,2]
[327102984,1715813435473,-500.0,0.00012876,2]
[327102985,1715813435482,-500.0,0.00012876,2]
[327102986,1715813435492,-500.0,0.00012876,2]
[327102987,1715813435501,-500.0,0.00012876,2]
[327102988,1715813435511,-500.0,0.00012876,2]
[327102989,1715813435522,-500.0,0.00012876,2]
[327102990,1715813435531,-240.2,0.00012876,2]
[327102991,1715813435540,-500.0,0.00012876,2]
[327102992,1715813435549,-500.0,0.00012876,2]
[327102993,1715813435559,-500.0,0.00012876,2]
[327102994,1715813435568,-500.0,0.00012876,2]
[327102995,1715813435578,-500.0,0.00012876,2]
[327102996,1715813435587,-545.9,0.00012876,2]
[327102997,1715813435596,-331.18,0.00012876,2]
[327102998,1715813435606,-500.0,0.00012876,2]
[327102999,1715813435616,-500.0,0.00012876,2]
[327103000,1715813435626,-500.0,0.00012876,2]
[327103001,1715813435635,-332.59,0.00012876,2]
[327103002,1715813435645,-500.0,0.00012876,2]
[327103003,1715813435654,-500.0,0.00012876,2]
[327103004,1715813435664,-500.0,0.00012876,2]
[327103005,1715813435674,-500.0,0.00012876,2]
[327103006,1715813435683,-500.0,0.00012876,2]
[327103007,1715813435693,-500.0,0.00012876,2]
[327103008,1715813435702,-500.0,0.00012876,2]
[327103009,1715813435712,-500.0,0.00012876,2]
[327103010,1715813435722,-500.0,0.00012876,2]
[327103011,1715813435732,-500.0,0.00012876,2]
[327103012,1715813435742,-500.0,0.00012876,2]
[327103013,1715813435751,-500.0,0.00012876,2]
[327103014,1715813435761,-553.00864501,0.00012876,2]
[327103015,1715813435771,-500.0,0.00012876,2]
[327103016,1715813435781,-500.0,0.00012876,2]
[327103017,1715813435791,-500.0,0.00012876,2]
[327103018,1715813435800,-500.0,0.00012876,2]
[327103019,1715813435810,-500.0,0.00012876,2]
[327103020,1715813435819,-500.0,0.00012876,2]
[327103021,1715813435829,-509.07993557,0.00012876,2]
[327103022,1715813435838,-500.0,0.00012876,2]
[327103023,1715813435848,-500.0,0.00012876,2]
[327103024,1715813435857,-500.0,0.00012876,2]
[327103025,1715813435867,-500.0,0.00012876,2]
[327103026,1715813435877,-500.0,0.00012876,2]
[327103027,1715813435886,-500.0,0.00012876,2]
[327103028,1715813435896,-500.0,0.00012876,2]
[327103029,1715813435905,-500.0,0.00012876,2]
[327103030,1715813435915,-194.30410358,0.00012876,2]
[327103031,1715813435924,-150.0,0.00012876,2]
[327103032,1715813435934,-500.0,0.00012876,2]
[327103033,1715813435943,-150.0,0.00012876,2]